[Event "US Masters 2022"]
[Site "Charlotte"]
[Date "2022.11.24"]
[Round "2.14"]
[White "Schitco, Ivan"]
[Black "Paikidze, Nazi"]
[Result "1-0"]
[ECO "D46"]
[WhiteElo "2532"]
[BlackElo "2323"]
[Annotator "TA"]
[PlyCount "122"]
[EventDate "2022.11.23"]
[EventType "swiss"]
[EventCountry "USA"]
[SourceTitle "playchess.com"]
[Source "ChessBase"]
[SourceQuality "1"]
[TimeControl "5400+30"]

{[%evp 20,122,31,38,58,18,20,18,24,28,44,28,43,39,48,-18,-22,-18,-25,-22,0,-8,0,0,0,-45,-12,-20,-6,-40,0,0,12,0,0,0,0,0,0,0,0,-27,0,0,0,0,0,-7,-8,-26,-30,-69,-67,-166,-155,-164,-153,-160,-20,-164,-159,-143,-133,-118,-16,-16,0,0,0,-94,0,0,0,0,0,0,268,273,268,255,270,255,260,252,256,168,147,55,63,0,40,0,0,0,0,0,0,0,0,0,20,15,201,201,193]} 1. c4 {[%emt 0:02:10]} e6 {[%emt 0:02:27]} 2. Nc3 {[%emt 0:01:00]} d5 {[%emt 0:00:20]} 3. e3 {[%emt 0:02:19]} Nf6 {[%emt 0:00:34]} 4. Nf3 {[%emt 0:00:10]} Be7 {[%emt 0:01:04]} 5. b3 {[%emt 0:00:21]} O-O {[%emt 0:01:16]} 6. Bb2 {[%emt 0:02:08]} c6 {[%emt 0:02:19]} 7. Qc2 {[%emt 0:01:47]} Nbd7 {[%emt 0:05:04]} 8. d4 {[%emt 0:07:40]} b6 {[%emt 0:01:16]} 9. Bd3 {[%emt 0:01:20]} Bb7 {[%emt 0:00:09]} 10. O-O {[%emt 0:01:14]} Rc8 {[%emt 0:06:14]} 11. Rad1 {[%emt 0:04:54]} Qc7 {[%emt 0:16:55] D46: Semi-Slav: 5 e3 Nbd7 6 Bd3, Black avoids the Meran.} 12. e4 {[%emt 0:04:39]} dxe4 {[%emt 0:03:00]} 13. Nxe4 {[%emt 0:00:48]} Nxe4 {[%emt 0:05:34] The position is equal.} 14. Bxe4 {[%emt 0:00:06]} Nf6 {[%emt 0:00:12]} 15. Bd3 {[%emt 0:01:09]} h6 {[%emt 0:03:03]} 16. c5 {[%emt 0:06:06]} Nd5 {[%emt 0:05:36] [#]} 17. Qd2 $146 {[%emt 0:16:42] Inhibits Nb4.} (17. Bh7+ $14 Kh8 18. Be4) ({Predecessor:} 17. Qc4 b5 18. Qc1 Nf4 19. Ne5 Bg5 20. Qc2 f5 21. Rfe1 Nxd3 22. Rxd3 Rcd8 23. Nf3 {½-½ (59) Levin,E (2543)-Lobanov,S (2482) St Petersburg 2018}) 17... bxc5 $11 {[%emt 0:07:55]} 18. dxc5 {[%emt 0:03:04]} Bxc5 {[%emt 0:00:50]} 19. Bb1 {[%emt 0:03:57] aiming for Qc2.} f5 {[%emt 0:03:56]} 20. Qe2 {[%emt 0:06:53]} Rce8 {[%emt 0:02:41]} 21. Ne5 {[%emt 0:04:08]} Bd6 {[%emt 0:03:24]} 22. f4 {[%emt 0:07:35]} Bxe5 {[%emt 0:04:49]} 23. Bxe5 {[%emt 0:00:58]} Qb6+ {[%emt 0:00:32]} 24. Qf2 {[%emt 0:04:22]} c5 {[%emt 0:02:34]} 25. h3 {[%emt 0:04:32]} Qc6 {[%emt 0:04:19]} 26. Rfe1 {[%emt 0:01:22][%mdl 1024] White has compensation.} Rf7 {[%emt 0:04:51]} 27. Rc1 {[%emt 0:12:36]} Rc8 {[%emt 0:00:16]} 28. Kh2 {[%emt 0:00:00]} a5 {[%emt 0:03:17]} 29. Bd4 {[%emt 0:00:00]} Qd6 {[%emt 0:05:00]} 30. Rxc5 {[%emt 0:00:00]} (30. Be5 $5 {[%cal Re5d6]} Qb6 31. Bd3 $11) 30... Qxf4+ {[%emt 0:00:17]} (30... Nxf4 31. Rxc8+ Bxc8 32. Be5 $11) 31. Qxf4 {[%emt 0:00:00]} Nxf4 {[%emt 0:00:02]} 32. Rxc8+ {[%emt 0:00:00]} Bxc8 {[%emt 0:00:01]} 33. g3 {[%emt 0:00:23]} Nd5 {[%emt 0:00:27]} 34. Rc1 {[%emt 0:00:49]} Bb7 {[%emt 0:00:38]} 35. Re1 {[%emt 0:01:04]} Rd7 $1 {[%emt 0:01:39]} 36. Rxe6 {[%emt 0:01:27]} (36. g4 $15) 36... Nc7 $19 {[%emt 0:04:25][%csl LRd4,LRe6]} 37. Rb6 {[%emt 0:00:27]} Bf3 {[%emt 0:01:03]} 38. Be5 {[%emt 0:00:39]} (38. Bxf5 $2 Rxd4 39. g4 Rd2+ 40. Kg3 Bh1 $19) 38... Rd2+ $1 {[%emt 0:00:47]} 39. Kg1 {[%emt 0:00:03]} Nd5 {[%emt 0:00:29] ...Rg2+ is the strong threat.} 40. Rb8+ {[%emt 0:00:28]} Kf7 {[%emt 0:00:02]} 41. Bf4 {[%emt 0:00:40] Inhibits Ne3.} (41. Bxf5 $2 {is the wrong capture.} Rg2+ 42. Kh1 Rxa2+ 43. Kg1 Rg2+ 44. Kh1 Rxg3+ 45. Kh2 Rg2+ 46. Kh1 Rg4+ 47. Kh2 Rg2+ 48. Kh1 Rd2+ 49. Kg1 Ne3 $19) 41... Rb2 {[%emt 0:00:58]} (41... Nxf4 $17 42. gxf4 g6) 42. Bxf5 $11 {[%emt 0:00:34]} g5 {[%emt 0:00:01]} 43. Bc1 {[%emt 0:00:18]} Rxa2 {[%emt 0:00:44]} 44. Bd3 {[%emt 0:00:26]} (44. Rc8 $11 {keeps the balance.}) 44... Nb4 {[%emt 0:00:47]} ({Better is} 44... Rg2+ $17 45. Kf1 Rxg3) 45. Bc4+ {[%emt 0:00:15]} Ke7 {[%emt 0:00:05]} 46. Be3 {[%emt 0:00:25]} Rg2+ {[%emt 0:00:33]} 47. Kf1 {[%emt 0:00:01]} Nc2 $2 {[%emt 0:00:56][%mdl 8192]} (47... Rxg3 $11 {and Black stays safe.} 48. Rh8 Bd5) 48. Bc5+ $18 {[%emt 0:00:15]} Kd7 {[%emt 0:00:32]} 49. Rf8 $1 {[%emt 0:00:19]} Be4 {[%emt 0:00:30] [#]} 50. Bb5+ $1 {[%emt 0:00:42] A strong pair of Bishops.} Kc7 {[%emt 0:00:30][%cal Og2h2]} 51. Rf7+ {[%emt 0:00:19]} Kb8 {[%emt 0:00:12][%cal Og2d2]} 52. Re7 {[%emt 0:02:09]} ({But not} 52. Bd3 $6 Bc6 $16) 52... Bd5 {[%emt 0:00:31][%cal Og2h2]} 53. Rd7 {[%emt 0:00:38]} ({White should try} 53. Be2 $16) 53... Rd2 $14 {[%emt 0:00:27]} 54. h4 {[%emt 0:00:34]} (54. Rd6 $14) 54... Kc8 {[%emt 0:00:46]} 55. Rd6 {[%emt 0:00:06]} (55. Rh7 $5 {[%cal Rb5a6]} Nd4 56. Bxd4 Rxd4 57. h5 $11) 55... Bg2+ {[%emt 0:00:30]} (55... gxh4 {looks sharper.} 56. Bc6 Ne3+ 57. Ke1 Rd1+) 56. Kg1 {[%emt 0:00:00]} Rxd6 {[%emt 0:00:18]} 57. Bxd6 {[%emt 0:00:01]} Bd5 {[%emt 0:00:10]} 58. h5 {[%emt 0:00:46]} Bxb3 {[%emt 0:00:32]} 59. Bf8 {[%emt 0:00:12]} a4 {[%emt 0:00:58]} 60. Bxh6 {[%emt 0:00:11][%cal Oh6g7] Black must now prevent Bg7!} a3 $2 {[%emt 0:00:42] [#]} (60... Nd4 $1 $11 61. Ba6+ Kd7) 61. Bg7 $1 $18 {[%emt 0:00:13]} Bg8 {[%emt 0:01:01] Both players deserved the win here.   Weighted Error Value: White=0.19 (very precise) /Black=0.21 (precise)} 1-0

[Event "US Masters 2022"]
[Site "Charlotte"]
[Date "2022.11.24"]
[Round "2.15"]
[White "Chiku-Ratte, Olivier-Kenta"]
[Black "Stremavicius, Titas"]
[Result "0-1"]
[ECO "A95"]
[WhiteElo "2344"]
[BlackElo "2527"]
[Annotator "TA"]
[PlyCount "86"]
[EventDate "2022.11.23"]
[EventType "swiss"]
[EventCountry "USA"]
[SourceTitle "playchess.com"]
[Source "ChessBase"]
[SourceQuality "1"]
[TimeControl "5400+30"]

{[%evp 18,86,27,29,52,54,60,72,79,73,91,95,90,49,61,54,58,68,143,148,137,135,231,208,242,64,95,66,87,55,91,0,0,-3,0,-35,-18,-147,-129,-212,-208,-227,-103,-98,-107,-408,-412,-662,-668,-785,-359,-987,-973,-1745,-1732,-1694,-1633,-29987,-29988,-29988,-29989,-29989,-29990,-29990,-29991,-29991,-29992,-29992,-29993,-29993,-29994]} 1. d4 {[%emt 0:07:44]} f5 {[%emt 0:01:14]} 2. g3 {[%emt 0:01:40]} Nf6 {[%emt 0:00:09]} 3. Bg2 {[%emt 0:00:03]} e6 {[%emt 0:01:12]} 4. Nf3 {[%emt 0:01:07]} d5 {[%emt 0:00:16]} 5. c4 {[%emt 0:00:31]} Be7 {[%emt 0:00:21]} 6. O-O {[%emt 0:01:42]} Ne4 {[%emt 0:00:25]} 7. Nc3 {[%emt 0:04:33]} c6 {[%emt 0:00:11]} 8. Qc2 {[%emt 0:05:46]} Nd7 {[%emt 0:00:13]} 9. b3 {[%emt 0:00:46]} O-O {[%emt 0:06:32]} 10. Bb2 {[%emt 0:01:40]} Nd6 {[%emt 0:11:33] A95: Classical Dutch: Classical Stonewall: 7 Nc3 c6.} 11. Nd2 {[%emt 0:09:43] [#]} Kh8 $146 {[%emt 0:05:20]} ({Predecessor:} 11... g5 12. Rac1 Nf7 13. Rfd1 Nf6 14. Nf3 Bd7 15. Ne5 Be8 16. e3 Nh8 17. Na4 Bh5 18. Re1 {½-½ (39) Reist,D-Donk,D ICCF email 2018}) 12. e3 {[%emt 0:02:00]} b6 {[%emt 0:12:04] White is better.} 13. Ne2 {[%emt 0:04:36]} Ba6 {[%emt 0:01:33]} 14. Nf4 {[%emt 0:16:49]} Rf6 {[%emt 0:00:13]} 15. f3 {[%emt 0:00:41][%cal Bf2f3,Bf3e4,Be4e5][%mdl 32]} Rh6 {[%emt 0:05:01]} 16. Rfe1 {[%emt 0:07:15]} Rc8 {[%emt 0:07:46]} 17. e4 {[%emt 0:15:48]} fxe4 {[%emt 0:01:03]} (17... Qf8 $14) 18. fxe4 $16 {[%emt 0:00:35]} dxc4 {[%emt 0:01:19] [#]} 19. e5 $1 {[%emt 0:05:31]} (19. bxc4 $6 Bg5 $11) (19. Nxc4 Bxc4 20. bxc4 b5 $14) 19... Nf7 {[%emt 0:14:29]} (19... c3 $16 20. exd6 (20. Bxc3 Nb5 $14) (20. Qxc3 Nf5 $14) 20... cxd2 21. Qxd2 (21. dxe7 dxe1=Q+ 22. Rxe1 Qxe7 $17) 21... Bg5) 20. bxc4 $18 {[%emt 0:03:45]} ({Resist} 20. Nxc4 Bg5) 20... Bg5 {[%emt 0:02:04]} 21. Nf3 $2 {[%emt 0:01:59]} (21. Re4 $18) 21... Bxf4 $14 {[%emt 0:02:11]} 22. gxf4 {[%emt 0:00:04]} b5 {[%emt 0:00:09]} 23. f5 {[%emt 0:02:55] Black must now prevent fxe6.} Nf8 {[%emt 0:00:07] [#]} 24. fxe6 {[%emt 0:01:55]} ({Better is} 24. c5 $1 $16) 24... Nxe6 $11 {[%emt 0:01:06]} 25. Qf5 $132 {[%emt 0:00:24][%mdl 2048] White is not holding back} Rc7 {[%emt 0:00:06]} 26. cxb5 {[%emt 0:02:22]} Bxb5 {[%emt 0:00:16] Hoping for ...Rg6.} 27. Rac1 {[%emt 0:00:47]} (27. Bc1 $1 $11 {remains equal.} Rg6 28. Qh5) 27... Rg6 $17 {[%emt 0:01:14]} 28. Kh1 {[%emt 0:01:01]} (28. d5 $17 {keeps fighting.} Nh6 29. Qe4 cxd5 30. Qh4) 28... Nh6 $19 {[%emt 0:00:31]} 29. Qe4 {[%emt 0:00:13]} Rg4 {[%emt 0:00:30]} (29... c5 $19 30. d5 Rg4) 30. Qc2 $17 {[%emt 0:00:48]} Nf4 {[%emt 0:00:51] Black is more active.} 31. Rg1 {[%emt 0:00:28][%mdl 8192]} (31. Bf1 $17 Qd5 32. Re3) 31... Bd3 $19 {[%emt 0:02:34][%cal Bb5d3,Bd3e4,Be4f3,Bf3d5,Bd5e6][%mdl 32]} 32. Qd2 {[%emt 0:00:33]} (32. Qf2 $142 Be4 33. Bf1) 32... Be4 {[%emt 0:00:36] Threatens to win with ...Nxg2.} 33. h3 {[%emt 0:00:35]} Nxg2 {[%emt 0:02:06] Pair of Knights!} (33... Bxf3 $142 34. Bxf3 Rh4) 34. hxg4 $2 {[%emt 0:00:25]} (34. Rxg2 Rxg2 35. Kxg2 (35. Qxg2 $2 {is the wrong capture.} Rf7 $19)) 34... Nh4 {[%emt 0:00:33]} ({And not} 34... Bxf3 35. Rxg2 Nxg4 36. Kg1 Bxg2 37. Qxg2 $17) 35. Qf4 {[%emt 0:00:32]} Bxf3+ {[%emt 0:02:49]} 36. Kh2 {[%emt 0:00:05]} Rf7 {[%emt 0:00:13]} 37. Qe3 {[%emt 0:01:05]} Bd5 {[%emt 0:00:45] Black mates.} 38. g5 {[%emt 0:00:19]} Nf3+ {[%emt 0:00:21]} 39. Kh3 {[%emt 0:00:23]} Qd7+ {[%emt 0:03:46]} 40. e6 {[%emt 0:00:38]} Bxe6+ {[%emt 0:00:07]} 41. Kg2 {[%emt 0:00:06]} Nh4+ {[%emt 0:01:13]} 42. Kh2 {[%emt 0:00:40]} Qd6+ {[%emt 0:00:12]} 43. Rg3 {[%emt 0:00:43]} Ng4+ {[%emt 0:00:10] Quite a comeback for Black.   Weighted Error Value: White=0.93/Black=0.26 (precise)} 0-1

[Event "US Masters 2022"]
[Site "Charlotte"]
[Date "2022.11.24"]
[Round "2.16"]
[White "Macieja, Bartlomiej"]
[Black "Csonka, Attila Istvan"]
[Result "1-0"]
[ECO "B38"]
[WhiteElo "2514"]
[BlackElo "2321"]
[Annotator "TA"]
[PlyCount "85"]
[EventDate "2022.11.23"]
[EventType "swiss"]
[EventCountry "USA"]
[SourceTitle "playchess.com"]
[Source "ChessBase"]
[SourceQuality "1"]
[TimeControl "5400+30"]

{[%evp 28,85,51,47,59,54,71,62,75,58,72,72,72,70,66,56,73,57,71,68,58,80,70,45,64,51,77,36,37,46,85,75,154,165,166,170,172,155,156,106,114,92,92,92,130,150,133,137,275,271,264,211,230,171,270,166,521,450,1517,1289]} 1. Nf3 {[%emt 0:00:50]} Nf6 {[%emt 0:00:28]} 2. c4 {[%emt 0:00:17]} c5 {[%emt 0:00:37]} 3. Nc3 {[%emt 0:00:31]} Nc6 {[%emt 0:02:11]} 4. d4 {[%emt 0:00:30]} cxd4 {[%emt 0:00:53]} 5. Nxd4 {[%emt 0:00:02]} g6 {[%emt 0:00:59]} 6. e4 {[%emt 0:00:10]} d6 {[%emt 0:00:12]} 7. f3 {[%emt 0:05:38]} Bg7 {[%emt 0:00:32]} 8. Be3 {[%emt 0:00:10]} Bd7 {[%emt 0:02:58]} 9. Be2 {[%emt 0:13:25]} O-O {[%emt 0:04:16]} 10. O-O {[%emt 0:11:38]} Nxd4 {[%emt 0:06:12]} 11. Bxd4 {[%emt 0:00:08]} a5 {[%emt 0:00:20]} 12. b3 {[%emt 0:01:30]} Bc6 {[%emt 0:00:26]} 13. Qd2 {[%emt 0:00:27]} Nd7 {[%emt 0:01:31]} 14. Bf2 {[%emt 0:00:03]} Nc5 {[%emt 0:00:36]} 15. Rab1 {[%emt 0:00:01]} Bd7 {[%emt 0:14:17] [#] B38: Sicilian: Maroczy Bind with 5...Bg7 and 7...0-0.} 16. Rfd1 $146 {[%emt 0:09:21]} ({Predecessor:} 16. Nd5 Be6 17. Rfe1 Bxd5 18. exd5 Qc7 19. Bf1 Rfe8 20. Re2 Bf6 21. h4 Qb6 22. a3 Qc7 23. h5 {½-½ (51) Teplitsky,Y (2375)-Afek,Y (2370) Ramat Hasharon 1993}) 16... Be6 {[%emt 0:02:20]} 17. Nd5 {[%emt 0:01:58]} Bxd5 {[%emt 0:02:56] White is slightly better.} 18. exd5 {[%emt 0:05:56]} Qb6 {[%emt 0:05:38]} 19. a3 {[%emt 0:01:14][%cal Ba2a3,Ba3b4,Bb4c5][%mdl 32] And now b4 would win.} Qc7 {[%emt 0:00:06]} 20. Bf1 {[%emt 0:02:36]} Rfe8 {[%emt 0:07:15]} 21. Re1 {[%emt 0:00:46]} Bf6 {[%emt 0:05:25]} 22. g3 {[%emt 0:05:11]} Qc8 {[%emt 0:04:29]} 23. b4 {[%emt 0:06:02]} axb4 {[%emt 0:00:23]} 24. axb4 {[%emt 0:00:03]} Nd7 {[%emt 0:00:11]} 25. c5 {[%emt 0:00:16]} Ne5 {[%emt 0:04:54]} 26. Rb3 {[%emt 0:03:25]} Rd8 {[%emt 0:01:35]} 27. Rc1 {[%emt 0:10:57]} dxc5 {[%emt 0:05:53]} 28. bxc5 {[%emt 0:00:02]} Qd7 {[%emt 0:00:15]} 29. Bg2 {[%emt 0:03:30]} e6 {[%emt 0:09:18]} (29... Qa4 $142 30. Rxb7 Qa3) 30. d6 $16 {[%emt 0:02:54]} Nc6 {[%emt 0:00:19]} 31. f4 {[%emt 0:00:27]} Ra7 {[%emt 0:00:38]} 32. Rb6 {[%emt 0:03:43]} Rda8 {[%emt 0:00:48]} 33. Bxc6 {[%emt 0:00:23] White has more active pieces.} (33. Qd1 $142) 33... bxc6 {[%emt 0:00:06]} 34. Bd4 {[%emt 0:00:06]} (34. Rf1 {simplifies} e5 35. fxe5 Bxe5 36. Qd3) 34... Ra2 {[%emt 0:01:42]} 35. Rb2 {[%emt 0:00:23][%cal Od4f6]} Rxb2 {[%emt 0:04:20]} 36. Qxb2 {[%emt 0:00:02]} Bxd4+ {[%emt 0:00:09]} 37. Qxd4 {[%emt 0:00:03][%mdl 4096] Endgame KQR-KQR} e5 {[%emt 0:00:06] This move loses the game for Black.} (37... Qa7 $16 38. Rc2 Qa3) 38. Qxe5 $18 {[%emt 0:02:26] Hoping for Re1.} (38. fxe5 Ra7 39. Rf1 Ra8 $18) 38... Re8 {[%emt 0:00:06]} 39. Qd4 {[%emt 0:01:07]} h5 {[%emt 0:00:19]} 40. Rf1 {[%emt 0:02:36][%cal Of4f5] Inhibits h4. Strongly threatening f5!} Qg4 {[%emt 0:07:56] Inhibits f5.} (40... Qf5 $142 41. Rd1 h4) 41. Qf6 {[%emt 0:03:20]} Re3 $2 {[%emt 0:02:04] [#]} (41... h4 {is a better chance.}) 42. Ra1 $1 {[%emt 0:01:57] White wants to mate with Ra8+.} Re8 {[%emt 0:01:34] [#] Against Ra8} (42... Ra3 $142 43. Rxa3 (43. Qd8+ Kg7 $11) 43... Qd1+ 44. Kf2 Qd2+ 45. Kf3 Qd1+ 46. Ke3 Qc1+ 47. Ke4 Qb1+ 48. Ke3 (48. Rd3 Qh1+ 49. Ke3 Qe1+ 50. Kf3 Qf1+ 51. Ke4 Qh1+ 52. Ke3 Qe1+ 53. Kf3 Qf1+ 54. Ke4 Qh1+ $11) 48... Qc1+ 49. Kd3 Qxa3+ 50. Qc3 Qa6+ 51. Ke3 Qa2) 43. Qe7 $3 {[%emt 0:01:20][%mdl 512] Weighted Error Value: White=0.17 (very precise) /Black=0.39} 1-0

[Event "US Masters 2022"]
[Site "Charlotte"]
[Date "2022.11.24"]
[Round "2.17"]
[White "Castro Torres, Jose Luis"]
[Black "Druska, Juraj"]
[Result "1/2-1/2"]
[ECO "D41"]
[WhiteElo "2342"]
[BlackElo "2511"]
[Annotator "TA"]
[PlyCount "101"]
[EventDate "2022.11.23"]
[EventType "swiss"]
[EventCountry "USA"]
[SourceTitle "playchess.com"]
[Source "ChessBase"]
[SourceQuality "1"]
[TimeControl "5400+30"]

{[%evp 26,101,33,3,14,0,0,0,0,0,43,48,41,39,38,27,57,28,70,0,0,0,0,0,4,4,10,5,5,0,0,0,0,0,0,-25,0,0,0,0,0,0,0,0,0,0,0,-1,0,0,14,14,0,0,0,0,0,0,0,0,0,0,0,0,0,0,0,0,0,0,0,0,0,0,0,0,0,0]} 1. d4 {[%emt 0:07:37]} Nf6 {[%emt 0:00:17]} 2. c4 {[%emt 0:00:07]} e6 {[%emt 0:00:03]} 3. Nf3 {[%emt 0:06:07]} d5 {[%emt 0:00:08]} 4. Nc3 {[%emt 0:00:05]} c5 {[%emt 0:00:05]} 5. cxd5 {[%emt 0:00:08]} Nxd5 {[%emt 0:00:05]} 6. e4 {[%emt 0:00:05]} Nxc3 {[%emt 0:00:06]} 7. bxc3 {[%emt 0:00:04]} cxd4 {[%emt 0:00:03]} 8. cxd4 {[%emt 0:00:08]} Bb4+ {[%emt 0:00:03]} 9. Bd2 {[%emt 0:00:08]} Bxd2+ {[%emt 0:00:04]} 10. Qxd2 {[%emt 0:00:08]} O-O {[%emt 0:00:05]} 11. Bc4 {[%emt 0:00:09]} Nd7 {[%emt 0:00:07]} 12. O-O {[%emt 0:00:07]} b6 {[%emt 0:00:03]} 13. Rfe1 {[%emt 0:00:29]} Bb7 {[%emt 0:00:07]} 14. Rad1 {[%emt 0:00:10]} Rc8 {[%emt 0:00:05] D41: Queen's Gambit Declined: Semi-Tarrasch with 5 cxd5.} 15. Bb3 {[%emt 0:00:03]} Re8 {[%emt 0:00:20]} 16. d5 {[%emt 0:02:38]} exd5 {[%emt 0:02:40]} 17. exd5 {[%emt 0:00:35]} Qf6 {[%emt 0:16:59]} 18. Ng5 {[%emt 0:20:42]} h6 {[%emt 0:25:04] Inhibits d6.} 19. Ne4 {[%emt 0:31:13]} Qg6 {[%emt 0:00:24] [#]} 20. f3 $146 {[%emt 0:02:45]} ({Predecessor:} 20. Qf4 Re5 21. Ba4 Bxd5 22. Bxd7 Rxe4 23. Rxe4 Bxe4 24. f3 Rc2 25. g4 Bd3 26. Rxd3 Qxd3 {1-0 (32) Molenda,M (2363)-Pulpan,J (2410) Bohumin 2020}) 20... Rcd8 {[%emt 0:07:22]} 21. Qf4 {[%emt 0:03:11] Threatens to win with Qc7.} (21. Qc3 $5 {[%cal Rc3c7]}) 21... Re5 {[%emt 0:14:08]} 22. Ba4 {[%emt 0:08:37] White is more active.} (22. Qc1 $14 b5 23. d6 Bxe4 24. Rxe4 (24. Qc7 Bxf3 25. Qxd8+ Kh7 $15)) 22... b5 $1 $11 {[%emt 0:00:35]} (22... Bxd5 $2 23. Bxd7 f6 {[#]} 24. Bc6 $1 $18 {[%mdl 512]}) (22... Rxd5 $2 23. Rxd5 Bxd5 24. Qc7 $18) 23. Bb3 {[%emt 0:05:54]} a5 {[%emt 0:00:47]} 24. a3 {[%emt 0:01:15]} Rde8 {[%emt 0:07:22] [#] aiming for ...f5.} 25. d6 {[%emt 0:03:06] Prevents ?nota?.} Kf8 {[%emt 0:07:29]} 26. Rf1 {[%emt 0:02:53]} f6 {[%emt 0:02:19][%cal Rb7e4]} 27. Ng3 {[%emt 0:02:05]} Qg5 {[%emt 0:05:49]} (27... a4 $5 28. Ba2 $8 Qc2 $11) 28. Qd4 {[%emt 0:00:29]} Qe3+ {[%emt 0:01:32]} 29. Qxe3 {[%emt 0:00:14]} Rxe3 {[%emt 0:00:02]} 30. Bd5 {[%emt 0:00:21]} Rb8 {[%emt 0:00:55]} 31. Bxb7 {[%emt 0:01:52] The position is equal.} Rxb7 {[%emt 0:00:00]} 32. Rc1 {[%emt 0:01:13]} Rd3 {[%emt 0:01:58]} 33. Ne4 {[%emt 0:00:54]} f5 {[%emt 0:03:46]} ({Don't do} 33... Rxa3 34. Rc7 Rxc7 35. dxc7 $16) 34. Nc5 {[%emt 0:00:48]} Nxc5 {[%emt 0:00:29]} 35. Rxc5 {[%emt 0:00:05]} Rxd6 {[%emt 0:03:08][%mdl 4096] Endgame KRR-KRR} 36. a4 {[%emt 0:01:32]} bxa4 {[%emt 0:01:13] Hoping for ...Rb2.} 37. Rxf5+ {[%emt 0:00:17]} Kg8 {[%emt 0:00:16] And now ...Rd2 would win.} 38. Rxa5 {[%emt 0:00:05]} Rb4 {[%emt 0:00:37]} 39. g4 {[%emt 0:01:09]} Rd3 {[%emt 0:01:03]} 40. Kg2 {[%emt 0:00:31]} a3 {[%emt 0:00:33]} 41. Kg3 {[%emt 0:00:25]} Rb2 {[%emt 0:01:00]} 42. h4 {[%emt 0:00:35]} a2 {[%emt 0:01:34] Strongly threatening ...Rb1.} 43. Rf2 {[%emt 0:00:23]} Rdd2 {[%emt 0:00:09]} 44. Rxd2 {[%emt 0:00:27]} Rxd2 {[%emt 0:00:01] KR-KR} 45. h5 {[%emt 0:00:37]} Kf7 {[%emt 0:00:09]} 46. Ra6 {[%emt 0:00:29]} Rb2 {[%emt 0:00:17]} 47. Kf4 {[%emt 0:00:17]} Ke7 {[%emt 0:00:52]} 48. Kf5 {[%emt 0:00:11]} Rb5+ {[%emt 0:00:43]} 49. Kf4 {[%emt 0:00:07]} Rb4+ {[%emt 0:00:06]} 50. Kf5 {[%emt 0:00:03]} Rb5+ {[%emt 0:00:05]} 51. Ke4 {[%emt 0:02:27] Weighted Error Value: White=0.05 (flawless) /Black=0.05 (flawless)} 1/2-1/2